[Event "SixDays Budapest March GM-A 2023"]
[Site "Budapest"]
[Date "2023.03.25"]
[Round "2.5"]
[White "Horvath, Adam"]
[Black "Kushagra Mohan"]
[Result "1/2-1/2"]
[ECO "B19"]
[WhiteElo "2458"]
[BlackElo "2396"]
[Annotator "TA"]
[PlyCount "111"]
[EventDate "2023.03.24"]
[EventType "tourn"]
[EventCountry "HUN"]
[SourceTitle "playchess.com"]
[Source "ChessBase"]
[SourceQuality "1"]
[TimeControl "5400+30"]

{[%evp 26,111,0,-18,7,-45,0,0,0,0,0,-31,-34,-97,-109,-116,0,0,0,0,0,-152,-162,-157,-166,-163,-6,-4,-4,-12,-4,-7,-19,-39,0,-6,-8,-75,-91,-178,-82,-247,-245,-239,-94,-94,-81,-99,-8,-8,-8,-8,-8,-33,-19,-52,-33,-111,-68,-56,-12,-12,-12,-12,-12,-12,-12,-12,-12,-15,-15,-15,-15,-19,-15,-19,-19,-19,-12,-15,-15,-15,0,-8,-8,-8,-12,-12]} 1. e4 {[%emt 0:05:02]} c6 {[%emt 0:00:34]} 2. d4 {[%emt 0:00:08]} d5 {[%emt 0:00:04]} 3. Nc3 {[%emt 0:00:15]} dxe4 {[%emt 0:00:04]} 4. Nxe4 {[%emt 0:00:04]} Bf5 {[%emt 0:00:04]} 5. Ng3 {[%emt 0:00:06]} Bg6 {[%emt 0:00:03]} 6. h4 {[%emt 0:01:01]} h6 {[%emt 0:00:03]} 7. Nf3 {[%emt 0:00:16]} Nd7 {[%emt 0:00:04]} 8. h5 {[%emt 0:00:12]} Bh7 {[%emt 0:00:06]} 9. Bd3 {[%emt 0:00:03]} Bxd3 {[%emt 0:00:03]} 10. Qxd3 {[%emt 0:00:05]} e6 {[%emt 0:00:04]} 11. Bd2 {[%emt 0:00:05]} Ngf6 {[%emt 0:00:04]} 12. O-O-O {[%emt 0:00:06]} Be7 {[%emt 0:00:02]} 13. Kb1 {[%emt 0:02:13]} O-O {[%emt 0:00:12]} 14. Qe2 {[%emt 0:04:20]} c5 {[%emt 0:04:59] B19: Classical Caro-Kann: 4...Bf5 main line.} (14... Qb6 {looks sharper.} 15. Ne5 Rfd8 16. c4 c5) 15. Bc1 {[%emt 0:19:16]} (15. dxc5 $11 Qc7 16. Bc3) 15... Qc7 {[%emt 0:05:29]} 16. d5 {[%emt 0:07:16][%mdl 64] Deflection} exd5 {[%emt 0:04:11]} 17. Nf5 {[%emt 0:00:05]} (17. Qxe7 $2 Rae8 18. Nf5 Rxe7 19. Nxe7+ Kh7 20. Nxd5 Nxd5 21. Rxd5 Re8 $19) 17... Bd6 {[%emt 0:00:31] [#]} 18. g4 $146 {[%emt 0:00:09]} ({Predecessor:} 18. N3h4 Rfe8 19. Qf3 Bf8 20. g4 Qb6 21. Ka1 Re4 22. Rhg1 Qa6 23. g5 hxg5 24. Rxg5 Qe2 25. Nh6+ Kh8 26. Nxf7+ Kg8 27. Nh6+ Kh8 28. Ng6+ Kh7 29. Qf5 {1-0 Guseinov,G (2609)-Harutjunyan,G (2476) Dubai op 12th 2010 (5)}) 18... Rfe8 {[%emt 0:08:15]} (18... Nxg4 $2 19. N3d4 cxd4 20. Qxg4 $18) 19. Qf1 {[%emt 0:06:47]} (19. Qd3 $1 $15) 19... Bf4 $17 {[%emt 0:07:22]} (19... Nxg4 20. N3h4 $16 (20. Rxd5 Bf8 $11)) 20. g5 {[%emt 0:01:22]} hxg5 {[%emt 0:01:02]} (20... Bxc1 $1 $17 21. gxf6 Bxb2 {[%mdl 64] Decoy} 22. Kxb2 Qb6+ 23. Kc1 Qxf6) 21. h6 $1 $11 {[%emt 0:13:58][%cal Bh5h6,Bh6h7][%mdl 32]} g6 {[%emt 0:01:27][%cal Bg7g6,Bg6f5,Bf5f4][%mdl 32]} 22. h7+ $1 {[%emt 0:02:36]} Kh8 $1 {[%emt 0:00:02]} 23. Nxg5 {[%emt 0:00:06]} ({Only move:} 23. Nh6 $11 Nb6 24. Bxf4 gxf4 25. Ng5) 23... Bxg5 $17 {[%emt 0:15:05]} (23... gxf5 24. Nxf7+ Kg7 25. h8=Q+ Rxh8 26. Nxh8 Rxh8 27. Qg2+ Ng4 28. Rxh8 Kxh8 29. f3 Bxc1 30. fxg4 $18) 24. Bxg5 {[%emt 0:00:11]} gxf5 {[%emt 0:06:33]} 25. Qh3 {[%emt 0:33:49] [#]} Qe5 $2 {[%emt 0:10:45]} (25... Qc6 $1 $19 26. Rdg1 Ng4) 26. f3 $11 {[%emt 0:03:13] Prevents Ng4.} Re6 {[%emt 0:11:55] White must now prevent ...Ne8.} 27. Rdg1 $1 {[%emt 0:00:05][%cal Og5f4] [#]} Ng4 $1 {[%emt 0:01:51]} 28. fxg4 {[%emt 0:00:20]} f4 $40 {[%emt 0:00:05][%mdl 128] Black attacks.} 29. Bh6 {[%emt 0:00:57]} Nf8 {[%emt 0:04:00]} (29... Kxh7 $2 30. Bxf4+ Kg7 31. Bxe5+ $18) ({Don't play} 29... Rb6 30. b3 Re8 31. Rf1 $14) 30. b3 {[%emt 0:00:46][%cal Og1e1]} Ng6 {[%emt 0:00:12]} (30... Nxh7 $2 31. Rf1 (31. Bxf4 Qg7 $18) 31... c4 32. Bxf4 $18 (32. Rxf4 cxb3 33. axb3 Ra6 $16)) 31. Rf1 {[%emt 0:00:31] [#]} (31. Rd1 $11 {remains equal.}) 31... c4 $1 $17 {[%emt 0:00:55] Threatens to win with ...cxb3.} (31... Kxh7 32. Bxf4+ Kg8 33. Qh7+ Kf8 34. Bxe5 Nxe5 35. Qh8+ Ke7 36. Qxa8) 32. Qg2 {[%emt 0:00:33]} (32. Qf3 $17) 32... cxb3 {[%emt 0:01:36]} (32... Kxh7 $2 33. Bxf4+ Kg7 34. Bxe5+ $18) (32... Rae8 $19 {...cxb3 would be deadly.} 33. Qd2 cxb3 34. cxb3 Qe4+ 35. Qc2 f6 36. Qxe4 {[%mdl 64] Remove Defender} dxe4 37. Bxf4 Nxf4 {[%mdl 64] Remove Defender} 38. Rxf4 e3) 33. axb3 $2 {[%emt 0:00:30]} (33. cxb3 $17 {only move.} Rae8 34. Qc2) 33... Ra6 {[%emt 0:04:15][%csl Ga6][%cal Re5a1]} (33... Kxh7 $2 34. Bxf4+ Kg7 35. Bxe5+ $18) 34. c3 {[%emt 0:00:04]} Qxc3 {[%emt 0:00:20]} (34... Rc8 $19 {has better winning chances.} 35. Rc1 Rac6) 35. Qb2 {[%emt 0:00:04]} Qxb2+ {[%emt 0:01:28]} 36. Kxb2 {[%emt 0:00:03]} Re8 {[%emt 0:00:14]} ({Black should play} 36... Kxh7 $17 {aiming for ...Kg8.} 37. Rh5 Re8 38. Bxf4+ Kg8 39. Rxd5 Rf6) 37. Bxf4 $11 {[%emt 0:00:15]} Nxf4 {[%emt 0:01:05]} 38. Rxf4 {[%emt 0:00:04][%mdl 4096] Endgame KRR-KRR} f6 {[%emt 0:00:04]} 39. Rd4 {[%emt 0:02:28]} Rd6 {[%emt 0:01:01]} 40. Rh5 {[%emt 0:00:17]} Re2+ {[%emt 0:01:21]} 41. Ka3 {[%emt 0:00:25]} ({Better is} 41. Kc3 $15) 41... Re5 {[%emt 0:01:29] ...Rxh5 is the strong threat.} 42. Rh6 {[%emt 0:00:05]} Re4 {[%emt 0:02:48] Wards off Rf4} (42... Re7 $5 {[%cal Re7h7]} 43. Rf4 Rf7 $17) 43. Rd2 {[%emt 0:00:04] The position is equal.} Rxg4 {[%emt 0:00:58]} 44. Rc2 {[%emt 0:00:04] White threatens Rc8+ and mate.} Rd8 {[%emt 0:00:44] Wards off Rc8. And now ...Rf8 would win.} 45. Rxf6 {[%emt 0:00:04]} Rg7 {[%emt 0:03:19]} 46. Rh6 {[%emt 0:00:25]} (46. Rd2 {simplifies} Kxh7 47. Rf5 Kg6 48. Rdxd5 Rxd5 49. Rxd5 Kf6 50. Rh5) 46... d4 {[%emt 0:00:18][%cal Bd5d4,Bd4d3][%mdl 32]} 47. Kb2 {[%emt 0:02:02]} (47. Rh4 {simplifies} Rxh7 48. Rf4 d3 49. Rd2) 47... d3 {[%emt 0:00:23]} 48. Rd2 {[%emt 0:00:04]} Rxh7 {[%emt 0:00:07]} (48... Rg3 {feels hotter.} 49. Kc3 Rd7 50. Rh5 Rxh7 51. Rd5 Kg8) 49. Re6 {[%emt 0:00:14]} Rhd7 {[%emt 0:03:58]} 50. Re3 {[%emt 0:00:06]} Kg7 {[%emt 0:00:09]} 51. Rf3 {[%emt 0:01:52]} Rd6 {[%emt 0:00:55]} 52. Rg2+ {[%emt 0:00:16]} Rg6 {[%emt 0:02:20]} 53. Rd2 {[%emt 0:00:04]} Rgd6 {[%emt 0:00:28]} 54. Rg2+ {[%emt 0:00:04]} Kh7 {[%emt 0:01:28] Strongly threatening ...d2.} (54... Rg6 $5 55. Rd2 $8 Rg4 $15) 55. Rh2+ {[%emt 0:00:07]} Rh6 {[%emt 0:00:29]} 56. Rd2 {[%emt 0:00:04] An interesting game.   Weighted Error Value: White=0.23 (precise) /Black=0.23 (precise)} 1/2-1/2

[Event "SixDays Budapest March GM-A 2023"]
[Site "Budapest"]
[Date "2023.03.25"]
[Round "3.1"]
[White "Kushagra Mohan"]
[Black "Rosh Jain"]
[Result "1/2-1/2"]
[ECO "B99"]
[WhiteElo "2396"]
[BlackElo "2325"]
[Annotator "TA"]
[PlyCount "63"]
[EventDate "2023.03.24"]
[EventType "tourn"]
[EventCountry "HUN"]
[SourceTitle "playchess.com"]
[Source "ChessBase"]
[SourceQuality "1"]
[TimeControl "5400+30"]

{[%evp 22,63,52,62,63,44,40,34,44,0,0,0,0,0,0,0,53,8,10,11,10,5,4,0,0,0,0,0,0,0,0,0,0,0,0,-15,-18,-9,0,-8,0,0,0,0]} 1. e4 {[%emt 0:07:12]} c5 {[%emt 0:00:39]} 2. Nf3 {[%emt 0:00:10]} d6 {[%emt 0:00:10]} 3. d4 {[%emt 0:00:03]} cxd4 {[%emt 0:00:04]} 4. Nxd4 {[%emt 0:00:03]} Nf6 {[%emt 0:00:11]} 5. Nc3 {[%emt 0:00:02]} a6 {[%emt 0:00:06]} 6. Bg5 {[%emt 0:00:03]} e6 {[%emt 0:00:06]} 7. f4 {[%emt 0:00:03]} Be7 {[%emt 0:00:05]} 8. Qf3 {[%emt 0:00:04]} Qc7 {[%emt 0:00:05]} 9. O-O-O {[%emt 0:00:05]} Nbd7 {[%emt 0:00:03]} 10. g4 {[%emt 0:00:04][%cal Bg2g4,Bg4g5][%mdl 32]} h6 {[%emt 0:00:05]} 11. Bxf6 {[%emt 0:00:02]} Bxf6 {[%emt 0:00:05]} 12. h4 {[%emt 0:00:03]} Nb6 {[%emt 0:00:07] B99: Sicilian Najdorf: 6 Bg5 e6 7 f4 Be7 8 Qf3 Qc7 9 0-0-0 Nbd7.} 13. g5 {[%emt 0:00:03]} Bxd4 {[%emt 0:00:06]} 14. Rxd4 {[%emt 0:00:03]} Qc5 {[%emt 0:00:11] White is slightly better.} 15. Qd3 {[%emt 0:00:01]} hxg5 {[%emt 0:02:21]} 16. b4 {[%emt 0:00:05][%mdl 64] [#] Deflection} ({Don't play} 16. Rxd6 Nd5 17. e5 Nxf4 $15) 16... Qc7 {[%emt 0:02:57]} 17. fxg5 {[%emt 0:00:17]} Bd7 {[%emt 0:04:57] ...Rc8 is the strong threat.} 18. Rxd6 {[%emt 0:08:12] [#]} O-O-O $146 {[%emt 0:17:29]} ({Better is} 18... Nc8 $1 $11 19. Rd4 Nb6) ({Predecessor:} 18... Nc8 19. Rd4 Nb6 20. g6 fxg6 21. Rd6 O-O-O 22. Bh3 e5 23. Bxd7+ Rxd7 24. Rxd7 Qxd7 {½-½ Roebers,E (2331)-Cvitan,O (2458) EU-ch 22nd Terme Catez 2022 (10)}) 19. Be2 {[%emt 0:05:24]} (19. Qg3 {simplifies} g6 20. Rd3 Qxg3 21. Rxg3 Bc6 22. Rf3) 19... Nd5 {[%emt 0:12:23] The position is equal.} 20. Rxd7 {[%emt 0:12:21]} (20. Nxd5 $2 {too greedy.} Qxd6 21. Ne3 Qxb4 22. Qc4+ Qxc4 23. Bxc4 Bc6 $19) 20... Qf4+ {[%emt 0:01:10]} 21. Kb2 {[%emt 0:04:11]} Rxd7 {[%emt 0:03:23]} 22. exd5 {[%emt 0:04:36] Black must now prevent Qc4+.} Qxb4+ {[%emt 0:00:16]} 23. Ka1 {[%emt 0:00:05] And now h5 would win.} Rxh4 {[%emt 0:02:37]} 24. Rxh4 {[%emt 0:05:49]} Qxh4 {[%emt 0:00:09]} 25. Qe3 {[%emt 0:09:09] Threatens to win with g6.} (25. Qc4+ {simplifies} Qxc4 26. Bxc4 exd5 27. Nxd5 Rd6 28. Nc3) 25... exd5 {[%emt 0:05:15]} 26. Bd3 {[%emt 0:00:42]} g6 {[%emt 0:02:28] Dodges Bf5} 27. Qe5 {[%emt 0:03:32]} Rd8 {[%emt 0:03:26]} 28. Kb2 {[%emt 0:07:23]} (28. Nxd5 $2 {perishes.} Qh1+ 29. Kb2 Qxd5 $19) 28... Qb4+ {[%emt 0:00:06]} 29. Kc1 {[%emt 0:00:27]} d4 {[%emt 0:00:20]} 30. Nd5 {[%emt 0:04:32] Chess con chili.} Rxd5 {[%emt 0:00:29][%mdl 64] [#] Deflection} 31. Qxd5 {[%emt 0:00:03] Qc4+ would be deadly.} Qe1+ {[%emt 0:00:08]} 32. Kb2 {[%emt 0:00:02] Weighted Error Value: White=0.07 (flawless) /Black=0.05 (flawless)} 1/2-1/2

[Event "SixDays Budapest March GM-A 2023"]
[Site "Budapest"]
[Date "2023.03.25"]
[Round "3.2"]
[White "Leszko, Bence"]
[Black "Horvath, Adam"]
[Result "1/2-1/2"]
[ECO "B32"]
[WhiteElo "2283"]
[BlackElo "2458"]
[Annotator "TA"]
[PlyCount "155"]
[EventDate "2023.03.24"]
[EventType "tourn"]
[EventCountry "HUN"]
[SourceTitle "playchess.com"]
[Source "ChessBase"]
[SourceQuality "1"]
[TimeControl "5400+30"]

{[%evp 9,155,27,44,29,39,5,41,8,28,10,11,20,32,0,32,13,0,0,16,-1,0,-9,-10,-20,-16,-49,-46,-40,-46,-110,0,0,0,0,0,-21,-14,-14,-20,-25,0,-52,8,8,4,0,8,8,8,8,8,0,8,0,0,0,8,8,11,-8,-8,-19,-8,-8,-8,-14,-8,-11,-11,-12,0,-8,0,-16,-19,-19,-19,-32,-16,-19,-14,-15,-15,-32,-32,-32,-19,-26,-8,-32,-32,-32,-32,-32,-32,-32,-32,-32,-32,-32,-26,-32,-32,-32,-8,-19,-8,-13,-8,-32,-20,-20,-7,-2,0,-8,0,-8,0,-8,-8,-8,0,-24,-13,-31,-31,-32,-32,-32,-31,-32,-19,-32,-32,-32,-32,-32,-31,-31,-31,-32,0,-16,0,-32,0,-13]} 1. e4 {[%emt 0:07:33]} c5 {[%emt 0:00:37]} 2. Nf3 {[%emt 0:00:06]} Nc6 {[%emt 0:00:06]} 3. d4 {[%emt 0:00:08]} cxd4 {[%emt 0:00:04]} 4. Nxd4 {[%emt 0:00:05]} Qb6 {[%emt 0:00:08]} 5. c3 {[%emt 0:00:26]} Nf6 {[%emt 0:02:32]} 6. Bd3 {[%emt 0:01:24] B32: Sicilian: Löwenthal and Kalashnikov Variations.} g6 {[%emt 0:04:09] [#]} 7. Be3 $146 {[%emt 0:06:28][%cal Od4e6]} ({Predecessor:} 7. Nxc6 dxc6 8. O-O Bg7 9. a4 O-O 10. Be3 Qxb2 11. Ra3 Rd8 12. a5 Be6 13. Bc1 Rxd3 14. Qxd3 {0-1 Ljukin,S (2362)-Dobrov,V (2478) Titled Tuesday intern op 30th Mar blitz 2021 (5)}) 7... Qc7 {[%emt 0:00:19]} ({But not} 7... Qxb2 8. Nb3 d5 9. Bc1 $16) 8. O-O {[%emt 0:01:36] White is slightly better.} Bg7 {[%emt 0:02:23]} 9. f4 {[%emt 0:22:13]} (9. Nb5 $5 {[%cal Rb5c7]} Qb8 10. h3 $11) 9... d6 {[%emt 0:07:57]} 10. h3 {[%emt 0:00:21]} O-O {[%emt 0:00:49]} 11. Qf3 {[%emt 0:01:23]} Bd7 {[%emt 0:07:13]} (11... e5 $5 {[%cal Re5d4]} 12. Nxc6 {[%mdl 64] Discovered Attack} Qxc6 $11) 12. Na3 {[%emt 0:01:30]} a6 {[%emt 0:15:17]} 13. Nac2 {[%emt 0:03:34]} b5 {[%emt 0:18:39]} 14. Rac1 {[%emt 0:05:52]} Na5 {[%emt 0:02:57]} 15. Nb4 {[%emt 0:02:03]} Nc4 {[%emt 0:01:34]} 16. Bxc4 {[%emt 0:01:20]} bxc4 {[%emt 0:00:11]} 17. e5 {[%emt 0:00:55][%mdl 64] [#] Deflection} dxe5 {[%emt 0:01:25]} 18. fxe5 {[%emt 0:00:05]} Qxe5 {[%emt 0:00:25]} 19. Nbc6 {[%emt 0:00:56]} (19. Rce1 $15) 19... Qe4 {[%emt 0:08:58]} ({Better is} 19... Bxc6 $17 20. Nxc6 Qe6) 20. Qxe4 $11 {[%emt 0:01:26][%mdl 64] Remove Defender} Nxe4 {[%emt 0:00:04]} 21. Nxe7+ {[%emt 0:00:05] A dynamic duo of knights.} Kh8 {[%emt 0:00:07]} 22. Nd5 {[%emt 0:00:53]} Rab8 $1 {[%emt 0:04:52]} 23. b3 {[%emt 0:00:52]} cxb3 {[%emt 0:05:02]} 24. axb3 {[%emt 0:00:08]} f5 {[%emt 0:00:29]} 25. Ra1 {[%emt 0:04:08]} (25. Rfd1 $11) 25... g5 {[%emt 0:00:51]} (25... Rfe8 $15 26. Bf2 Re5) 26. Rxa6 {[%emt 0:07:35]} f4 {[%emt 0:00:04]} 27. Bf2 {[%emt 0:00:05]} Nxf2 {[%emt 0:10:35]} 28. Rxf2 {[%emt 0:00:07]} Bxd4 {[%emt 0:00:03]} 29. cxd4 {[%emt 0:00:07][%cal Oh3h4]} Rxb3 {[%emt 0:00:02]} 30. Rd6 {[%emt 0:16:34]} Bb5 {[%emt 0:00:25]} 31. Nc7 {[%emt 0:04:23]} Rb1+ {[%emt 0:04:23]} 32. Kh2 {[%emt 0:00:00]} Rc8 {[%emt 0:00:06]} 33. Ne6 {[%emt 0:00:43]} h6 {[%emt 0:00:55]} 34. Nxf4 {[%emt 0:00:44]} gxf4 {[%emt 0:02:39]} 35. Rxf4 {[%emt 0:03:49]} Kg7 {[%emt 0:00:56]} 36. Rg4+ {[%emt 0:00:35]} Kh7 {[%emt 0:00:05]} 37. Rgg6 {[%emt 0:00:49]} Bd3 {[%emt 0:00:22]} 38. Rxh6+ {[%emt 0:00:16]} Kg7 {[%emt 0:00:04]} 39. Rhe6 {[%emt 0:00:15]} Rc7 {[%emt 0:00:28]} 40. Re3 {[%emt 0:01:39]} Rd1 {[%emt 0:00:19]} 41. d5 {[%emt 0:01:14]} Rd2 {[%emt 0:00:46]} 42. Rc6 {[%emt 0:02:14]} Rd7 {[%emt 0:00:48]} 43. d6 {[%emt 0:00:48]} Bf5 {[%emt 0:01:16]} 44. Rc7 {[%emt 0:02:00]} (44. Rc5 {with more complications.} Rf7 45. Ree5 Bd7 46. Rcd5) 44... R2xd6 {[%emt 0:00:18]} (44... Rxc7 {keeps more tension.} 45. dxc7 Rc2 46. Kg3 Kf6) 45. Rxd7+ {[%emt 0:00:08]} Bxd7 {[%emt 0:00:05][%mdl 4096] Endgame KRB-KR} 46. Re2 {[%emt 0:00:06]} Kf6 {[%emt 0:00:17]} 47. Rf2+ {[%emt 0:00:13]} Ke7 {[%emt 0:00:09]} 48. Re2+ {[%emt 0:00:09]} Be6 {[%emt 0:00:04]} 49. Rf2 {[%emt 0:00:10]} Rd3 {[%emt 0:00:06]} 50. Re2 {[%emt 0:00:08]} Kf6 {[%emt 0:00:12]} 51. Rf2+ {[%emt 0:00:05]} Ke5 {[%emt 0:00:02]} 52. Re2+ {[%emt 0:00:05]} Kd5 {[%emt 0:00:03]} 53. Kg1 {[%emt 0:00:30]} Bf5 {[%emt 0:00:06]} 54. Kf2 {[%emt 0:01:17]} Kd4 {[%emt 0:00:12]} 55. Kg1 {[%emt 0:00:36]} Rg3 {[%emt 0:02:27]} 56. Kh2 {[%emt 0:00:27]} Rg8 {[%emt 0:00:04]} 57. Ra2 {[%emt 0:00:35]} Ke3 {[%emt 0:00:29]} 58. Ra3+ {[%emt 0:00:38]} Bd3 {[%emt 0:00:06]} 59. Ra2 {[%emt 0:00:08]} Be2 {[%emt 0:00:48]} 60. Ra7 {[%emt 0:00:21]} Kf2 {[%emt 0:00:34]} 61. Rf7+ $1 {[%emt 0:00:15]} Ke1 {[%emt 0:00:10]} 62. Kg1 {[%emt 0:00:31]} Rg6 {[%emt 0:00:59]} 63. Rf5 {[%emt 0:00:31]} Kd2 {[%emt 0:01:11]} 64. Kf2 {[%emt 0:01:01]} Bd3 {[%emt 0:00:20]} 65. Rf4 $1 {[%emt 0:00:48]} Re6 {[%emt 0:00:25]} 66. Kg1 {[%emt 0:00:44]} Be4 {[%emt 0:01:01]} 67. Rf2+ {[%emt 0:00:07]} Ke3 {[%emt 0:00:04]} 68. Ra2 {[%emt 0:00:23]} Rb6 {[%emt 0:01:47]} 69. Kh2 {[%emt 0:00:25]} Bd5 {[%emt 0:00:26]} 70. Ra5 {[%emt 0:01:04]} Rd6 {[%emt 0:00:29]} 71. Kg1 {[%emt 0:01:12]} Kf4 {[%emt 0:00:45]} 72. Ra4+ {[%emt 0:00:24]} Be4 {[%emt 0:00:15]} 73. Ra2 {[%emt 0:01:46]} Kg3 {[%emt 0:01:05][%cal Rd6d1]} 74. Ra3+ {[%emt 0:00:00]} Bd3 {[%emt 0:00:26]} 75. Ra4 {[%emt 0:00:44][%csl Gh3][%cal Ra4g4]} Be4 {[%emt 0:00:39][%cal Rd6d1][%mdl 64] [#] Back Rank} 76. Ra3+ {[%emt 0:00:06]} Bd3 {[%emt 0:00:27]} 77. Ra4 {[%emt 0:00:04][%csl Gh3][%cal Ra4g4]} Be4 {[%emt 0:00:31][%cal Rd6d1][%mdl 64] Back Rank} 78. Ra3+ {Weighted Error Value: White=0.11 (very precise) /Black=0.12 (very precise)} 1/2-1/2

[Event "SixDays Budapest March GM-A 2023"]
[Site "Budapest"]
[Date "2023.03.25"]
[Round "3.3"]
[White "Berczes, David"]
[Black "Pap, Misa"]
[Result "1/2-1/2"]
[ECO "A40"]
[WhiteElo "2427"]
[BlackElo "2403"]
[Annotator "TA"]
[PlyCount "36"]
[EventDate "2023.03.24"]
[EventType "tourn"]
[EventCountry "HUN"]
[SourceTitle "playchess.com"]
[Source "ChessBase"]
[SourceQuality "1"]
[TimeControl "5400+30"]

{[%evp 17,19,32,39,27]} 1. d4 {[%emt 0:06:17]} Nf6 {[%emt 0:00:43]} 2. c4 {[%emt 0:00:34]} e6 {[%emt 0:00:10]} 3. g3 {[%emt 0:00:13]} Bb4+ {[%emt 0:00:11]} 4. Bd2 {[%emt 0:00:10]} Bxd2+ {[%emt 0:00:49]} 5. Qxd2 {[%emt 0:00:14]} d6 {[%emt 0:00:09]} 6. Bg2 {[%emt 0:00:23]} O-O {[%emt 0:00:07]} 7. Nc3 {[%emt 0:00:20]} Qe7 {[%emt 0:00:48]} 8. Nf3 {[%emt 0:01:22]} e5 {[%emt 0:00:15]} 9. O-O {[%emt 0:00:55]} Re8 {[%emt 0:00:52]} 10. dxe5 {[%emt 0:01:05] [#]  E11: Bogo-Indian.} {Predecessor:} dxe5 $146 11. Nd5 Nxd5 12. cxd5 e4 13. Nd4 Qe5 14. Rfd1 Qxd5 15. Qf4 Na6 16. Nb3 Qe6 17. Qxe4 Qxe4 18. Bxe4 c6 {1-0 Aczel,G (2552)-Kosic,D (2436) CRO-chT1B 29th 2021 (4.51)} 1/2-1/2

[Event "SixDays Budapest March GM-A 2023"]
[Site "Budapest"]
[Date "2023.03.25"]
[Round "3.4"]
[White "Pfreundt, Jakob"]
[Black "Arfan, Aditya Bagus"]
[Result "1-0"]
[ECO "B12"]
[WhiteElo "2407"]
[BlackElo "2374"]
[Annotator "TA"]
[PlyCount "61"]
[EventDate "2023.03.24"]
[EventType "tourn"]
[EventCountry "HUN"]
[SourceTitle "playchess.com"]
[Source "ChessBase"]
[SourceQuality "1"]
[TimeControl "5400+30"]

{[%evp 9,61,10,26,20,22,22,22,20,39,33,41,-8,10,0,14,0,35,45,27,35,77,70,77,72,70,72,79,79,99,100,80,95,180,184,253,252,556,123,558,585,565,575,577,556,540,541,801,800,1350,1254,1093,900,1812,1763]} 1. e4 {[%emt 0:00:55]} c6 {[%emt 0:05:33]} 2. d4 {[%emt 0:00:10]} d5 {[%emt 0:00:00]} 3. e5 {[%emt 0:00:11]} c5 {[%emt 0:00:05]} 4. Nf3 {[%emt 0:00:20]} Nc6 {[%emt 0:00:03]} 5. dxc5 {[%emt 0:00:35]} e6 {[%emt 0:00:06]} 6. a3 {[%emt 0:00:21] B12: Caro-Kann: Advance Variation.} Bxc5 {[%emt 0:00:02]} 7. b4 {[%emt 0:00:11] Prevents Qa5.} Bb6 {[%emt 0:00:00]} 8. Bb2 {[%emt 0:00:40] The position is equal.} Nge7 {[%emt 0:00:02]} 9. Bd3 {[%emt 0:06:35]} Ng6 {[%emt 0:00:02]} 10. b5 {[%emt 0:01:34]} (10. O-O $14) 10... Na5 {[%emt 0:03:41]} 11. h4 {[%emt 0:02:12][%cal Bh2h4,Bh4h5,Bh5h6][%mdl 32] [#]} Nf4 $146 {[%emt 0:11:48]} ({Predecessor:} 11... Qc7 12. h5 Nf4 13. Bf1 Nc4 14. Bd4 Ba5+ 15. c3 f6 16. g3 fxe5 17. Nxe5 Nxe5 18. gxf4 {½-½ Tari,A (2646)-Fedoseev,V (2704) FIDE Grand Swiss 2021 (3)}) 12. Bf1 {[%emt 0:05:28]} Ng6 {[%emt 0:07:52]} (12... Qc7 $5 {[%cal Ra5c4]}) 13. h5 {[%emt 0:02:12]} Ne7 {[%emt 0:05:48]} 14. h6 {[%emt 0:02:18]} g6 {[%emt 0:00:06]} 15. Nbd2 {[%emt 0:05:56]} O-O {[%emt 0:06:55]} 16. Bd3 {[%emt 0:03:47]} Bc5 {[%emt 0:02:23]} 17. Nb3 {[%emt 0:05:30]} Bb6 {[%emt 0:13:27] Black is weak on the dark squares} 18. O-O {[%emt 0:03:49] White is more active.} Nf5 {[%emt 0:01:43]} 19. Nxa5 {[%emt 0:14:43]} Bxa5 {[%emt 0:00:30] [#]} 20. Qc1 $1 {[%emt 0:01:20]} Nh4 {[%emt 0:04:16] [#]} (20... a6 $16 {was necessary.}) 21. Nh2 $1 $18 {[%emt 0:02:51][%cal Bf3h2,Bh2g4,Bg4f6][%mdl 32]} Nf5 {[%emt 0:08:06]} (21... Qd7 $142 22. Ng4 Bd8) 22. Ng4 {[%emt 0:02:05]} Qh4 $2 {[%emt 0:00:09]} (22... Kh8 23. Bxf5 gxf5) 23. Bxf5 $2 {[%emt 0:08:46]} (23. Nf6+ $18 {is the precise move to win.} Kh8 24. Bxf5 exf5 25. g3 (25. Nxd5 Be6 $14)) 23... exf5 $4 {[%emt 0:00:26][%mdl 8192] Black cannot hold the game after this.} (23... Bd8 $16 {is tougher.}) 24. Nf6+ {[%emt 0:00:11] White is clearly winning.} Kh8 {[%emt 0:00:01]} 25. g3 {[%emt 0:06:15]} (25. Nxd5 Be6 26. Rd1 g5 $11) 25... Qc4 {[%emt 0:05:53] [#]} 26. e6 $1 {[%emt 0:04:04][%mdl 512]} Bxe6 {[%emt 0:00:14]} 27. Qe3 {[%emt 0:06:13] Prevents Bc3} ({Not} 27. Nxd5+ f6 28. Nxf6 (28. Bxf6+ Rxf6 29. Nxf6 Bc3 $17) 28... Bc3 $14) 27... d4 {[%emt 0:05:00]} 28. Bxd4 {[%emt 0:00:03]} ({Weaker is} 28. Qxd4 Qxd4 29. Bxd4 Rfd8 $16) 28... Bb6 {[%emt 0:02:11]} 29. Bxb6 {[%emt 0:01:25]} axb6 {[%emt 0:00:02]} 30. Qe5 {[%emt 0:00:52] Intending Nd5+ and mate.} (30. Qxb6 $2 Qc3 31. Qxb7 Qxf6 $17) 30... Rac8 {[%emt 0:00:44]} 31. Nd5+ {[%emt 0:00:44][%mdl 64] Discovered Attack.   Weighted Error Value: White=0.25 (precise) /Black=0.48} 1-0